[Event "*** SCC Grand Prix: Titled Tuesday Blitz"]
[Site "Chess.com"]
[Date "2020.08.11"]
[Round "7"]
[White "TheMightyBishops"]
[Black "VladaSviridova"]
[Result "0-1"]
[WhiteElo "2001"]
[BlackElo "2231"]
[TimeControl "180+1"]
[EndTime "11:17:18 PDT"]
[Termination "VladaSviridova won by checkmate"]

1. c4 {[%clk 0:03:00.8]} 1... c6 {[%clk 0:02:59.9]} 2. d4 {[%clk 0:02:54.8]}
2... d5 {[%clk 0:03:00.1]} 3. e3 {[%clk 0:02:54]} 3... Nf6 {[%clk 0:03:00.1]} 4.
Nc3 {[%clk 0:02:53.2]} 4... e6 {[%clk 0:03:00]} 5. a3 {[%clk 0:02:44.1]} 5... a5
{[%clk 0:02:56.6]} 6. cxd5 {[%clk 0:02:29.6]} 6... exd5 {[%clk 0:02:56.3]} 7.
Bd3 {[%clk 0:02:18.4]} 7... Bd6 {[%clk 0:02:55.7]} 8. h4 {[%clk 0:02:15.5]} 8...
O-O {[%clk 0:02:51.4]} 9. Nf3 {[%clk 0:02:14.9]} 9... Re8 {[%clk 0:02:48.3]} 10.
Ng5 {[%clk 0:02:13.8]} 10... h6 {[%clk 0:02:45.7]} 11. Qc2 {[%clk 0:02:13.2]}
11... Qe7 {[%clk 0:02:34.1]} 12. Bd2 {[%clk 0:02:11.1]} 12... hxg5 {[%clk
0:02:19.7]} 13. hxg5 {[%clk 0:02:10.4]} 13... Ne4 {[%clk 0:02:19.8]} 14. O-O-O
{[%clk 0:02:03.5]} 14... Qxg5 {[%clk 0:02:16.6]} 15. Nxe4 {[%clk 0:01:41.2]}
15... dxe4 {[%clk 0:02:15.5]} 16. Bxe4 {[%clk 0:01:40.7]} 16... g6 {[%clk
0:02:12.8]} 17. f4 {[%clk 0:01:39.9]} 17... Qe7 {[%clk 0:02:09.6]} 18. Bxg6
{[%clk 0:01:36.5]} 18... Qf6 {[%clk 0:02:00.5]} 19. Rh5 {[%clk 0:01:24.6]} 19...
fxg6 {[%clk 0:01:55.5]} 20. Rg5 {[%clk 0:01:23.2]} 20... Bf5 {[%clk 0:01:54.5]}
21. Qc3 {[%clk 0:01:21.5]} 21... Nd7 {[%clk 0:01:49]} 22. Qb3+ {[%clk
0:01:21.1]} 22... Qe6 {[%clk 0:01:45.3]} 23. Qc3 {[%clk 0:01:19.1]} 23... Nf6
{[%clk 0:01:41.7]} 24. Rh1 {[%clk 0:01:17.7]} 24... Qe4 {[%clk 0:01:25.9]} 25.
Qb3+ {[%clk 0:01:07.4]} 25... Nd5 {[%clk 0:01:25]} 26. Rxf5 {[%clk 0:01:01.9]}
26... gxf5 {[%clk 0:00:57.4]} 27. Qxb7 {[%clk 0:00:54.6]} 27... Qe7 {[%clk
0:00:57.2]} 28. Qxc6 {[%clk 0:00:53.2]} 28... Rec8 {[%clk 0:00:56.2]} 29. Qc7
{[%clk 0:00:50.7]} 29... Rxc7+ {[%clk 0:00:55.6]} 30. Kb1 {[%clk 0:00:50.1]}
30... Rb8 {[%clk 0:00:53.9]} 31. Rh5 {[%clk 0:00:46.8]} 31... Rcb7 {[%clk
0:00:51.8]} 32. Rg5+ {[%clk 0:00:46.2]} 32... Kf7 {[%clk 0:00:51.3]} 33. Kc1
{[%clk 0:00:42.6]} 33... Rxb2 {[%clk 0:00:50.5]} 34. Kd1 {[%clk 0:00:42.5]}
34... Nxe3+ {[%clk 0:00:48.9]} 35. Ke2 {[%clk 0:00:18.9]} 35... Ng4+ {[%clk
0:00:47.3]} 36. Kd3 {[%clk 0:00:17.1]} 36... R8b3+ {[%clk 0:00:42.7]} 37. Kc4
{[%clk 0:00:16.5]} 37... Qe6+ {[%clk 0:00:40.4]} 38. d5 {[%clk 0:00:15]} 38...
Qe4# {[%clk 0:00:40.1]} 0-1

[Event "*** SCC Grand Prix: Titled Tuesday Blitz"]
[Site "Chess.com"]
[Date "2020.08.11"]
[Round "7"]
[White "FedaMaster"]
[Black "Alberquintin"]
[Result "1-0"]
[WhiteElo "2407"]
[BlackElo "2524"]
[TimeControl "180+1"]
[EndTime "11:17:23 PDT"]
[Termination "FedaMaster won by resignation"]

1. e4 {[%clk 0:03:00.9]} 1... e5 {[%clk 0:02:59.6]} 2. Nf3 {[%clk 0:03:00.3]}
2... Nc6 {[%clk 0:03:00.1]} 3. Bb5 {[%clk 0:03:01]} 3... a6 {[%clk 0:02:59.5]}
4. Bxc6 {[%clk 0:03:01.6]} 4... dxc6 {[%clk 0:02:59]} 5. O-O {[%clk 0:03:02.5]}
5... Bd6 {[%clk 0:02:58.2]} 6. d4 {[%clk 0:03:02.3]} 6... exd4 {[%clk
0:02:59.1]} 7. Qxd4 {[%clk 0:03:02.5]} 7... f6 {[%clk 0:02:58]} 8. Be3 {[%clk
0:03:02.9]} 8... Ne7 {[%clk 0:02:56.5]} 9. Nbd2 {[%clk 0:03:03.1]} 9... Be6
{[%clk 0:02:56.5]} 10. Rad1 {[%clk 0:03:02.5]} 10... O-O {[%clk 0:02:49.3]} 11.
Nc4 {[%clk 0:02:57.2]} 11... Bxh2+ {[%clk 0:02:48.5]} 12. Kxh2 {[%clk
0:02:57.8]} 12... Qxd4 {[%clk 0:02:48.6]} 13. Rxd4 {[%clk 0:02:56.9]} 13... c5
{[%clk 0:02:48.9]} 14. Rd2 {[%clk 0:02:55.8]} 14... Bxc4 {[%clk 0:02:48.9]} 15.
Rfd1 {[%clk 0:02:56]} 15... Be6 {[%clk 0:02:38.2]} 16. Bxc5 {[%clk 0:02:54.1]}
16... Rfe8 {[%clk 0:02:38.5]} 17. Nd4 {[%clk 0:02:52]} 17... Bd7 {[%clk
0:02:37]} 18. Nb3 {[%clk 0:02:46.3]} 18... Bc6 {[%clk 0:02:25.9]} 19. Bxe7
{[%clk 0:02:43.9]} 19... Rxe7 {[%clk 0:02:25.7]} 20. f3 {[%clk 0:02:39.6]} 20...
b6 {[%clk 0:02:24.5]} 21. Nd4 {[%clk 0:02:38.6]} 21... Bd7 {[%clk 0:02:24.5]}
22. a3 {[%clk 0:02:35]} 22... Kf7 {[%clk 0:02:12.1]} 23. Rd3 {[%clk 0:02:34]}
23... Rae8 {[%clk 0:02:08.6]} 24. g4 {[%clk 0:02:30.5]} 24... h5 {[%clk
0:02:01.5]} 25. gxh5 {[%clk 0:02:26.6]} 25... Rh8 {[%clk 0:02:01.2]} 26. Kg3
{[%clk 0:02:25]} 26... Rxh5 {[%clk 0:02:00.8]} 27. Rc3 {[%clk 0:02:25.5]} 27...
c5 {[%clk 0:01:52.6]} 28. Ne2 {[%clk 0:02:23]} 28... Rhe5 {[%clk 0:01:21.2]} 29.
Nf4 {[%clk 0:02:20.3]} 29... g5 {[%clk 0:01:20.1]} 30. Nd5 {[%clk 0:02:19.8]}
30... R7e6 {[%clk 0:01:18.3]} 31. Nxb6 {[%clk 0:02:19.9]} 31... Rxb6 {[%clk
0:01:15.3]} 32. Rxd7+ {[%clk 0:02:19.5]} 32... Ke6 {[%clk 0:01:15.6]} 33. Ra7
{[%clk 0:02:18.9]} 33... Rxb2 {[%clk 0:01:13]} 34. Rxa6+ {[%clk 0:02:18.8]}
34... Kf7 {[%clk 0:01:13.4]} 35. Ra5 {[%clk 0:02:13.5]} 35... Ra2 {[%clk
0:01:10.7]} 36. Rb5 {[%clk 0:01:58.8]} 36... Kg6 {[%clk 0:01:05]} 37. Kg4 {[%clk
0:01:54.7]} 37... Ra1 {[%clk 0:01:04.8]} 38. Kg3 {[%clk 0:01:50.9]} 38... g4
{[%clk 0:00:57.6]} 39. Kxg4 {[%clk 0:01:45.8]} 39... Rh5 {[%clk 0:00:29.5]} 40.
Rbxc5 {[%clk 0:01:28.7]} 40... Rxc5 {[%clk 0:00:29.2]} 41. Rxc5 {[%clk
0:01:27.7]} 41... Rxa3 {[%clk 0:00:29.6]} 42. Rc6 {[%clk 0:01:28.1]} 42... Kf7
{[%clk 0:00:29]} 43. c3 {[%clk 0:01:24.8]} 43... Ke7 {[%clk 0:00:24.7]} 44. f4
{[%clk 0:01:22]} 44... Ra5 {[%clk 0:00:23.7]} 45. c4 {[%clk 0:01:19.5]} 45...
f5+ {[%clk 0:00:21.3]} 46. exf5 {[%clk 0:01:18.1]} 46... Kd7 {[%clk 0:00:21.8]}
47. Re6 {[%clk 0:01:15.3]} 47... Ra2 {[%clk 0:00:20.5]} 48. Re5 {[%clk
0:01:11.2]} 48... Rg2+ {[%clk 0:00:20.2]} 49. Kf3 {[%clk 0:01:11.3]} 49... Rg8
{[%clk 0:00:19.5]} 50. f6 {[%clk 0:01:08.8]} 50... Rf8 {[%clk 0:00:19.4]} 51.
Rf5 {[%clk 0:01:07]} 51... Ke6 {[%clk 0:00:19.6]} 52. Ke4 {[%clk 0:01:06.4]}
52... Rc8 {[%clk 0:00:19.6]} 53. f7 {[%clk 0:01:04]} 1-0

[Event "*** SCC Grand Prix: Titled Tuesday Blitz"]
[Site "Chess.com"]
[Date "2020.08.11"]
[Round "7"]
[White "Lagravesamuell"]
[Black "onnoelgersma"]
[Result "1-0"]
[WhiteElo "2615"]
[BlackElo "2419"]
[TimeControl "180+1"]
[EndTime "11:17:25 PDT"]
[Termination "Lagravesamuell won by checkmate"]

1. d4 {[%clk 0:02:58.4]} 1... d5 {[%clk 0:03:00.4]} 2. c4 {[%clk 0:02:56.7]}
2... e6 {[%clk 0:03:00.8]} 3. Nc3 {[%clk 0:02:55.9]} 3... Nf6 {[%clk 0:03:01.5]}
4. Bg5 {[%clk 0:02:55.9]} 4... Be7 {[%clk 0:02:56]} 5. cxd5 {[%clk 0:02:55.6]}
5... exd5 {[%clk 0:02:55.6]} 6. e3 {[%clk 0:02:55.7]} 6... O-O {[%clk
0:02:55.8]} 7. Bd3 {[%clk 0:02:54.5]} 7... c6 {[%clk 0:02:56.4]} 8. Qc2 {[%clk
0:02:54.2]} 8... h6 {[%clk 0:02:55.1]} 9. Bh4 {[%clk 0:02:54.3]} 9... Bd6 {[%clk
0:02:55.6]} 10. Nge2 {[%clk 0:02:52.9]} 10... a5 {[%clk 0:02:55.6]} 11. f3
{[%clk 0:02:39.8]} 11... Na6 {[%clk 0:02:55.1]} 12. a3 {[%clk 0:02:38.9]} 12...
Re8 {[%clk 0:02:35.7]} 13. Bf2 {[%clk 0:02:37.7]} 13... b5 {[%clk 0:01:46]} 14.
O-O {[%clk 0:02:33]} 14... Qc7 {[%clk 0:01:32.6]} 15. h3 {[%clk 0:02:26.5]}
15... b4 {[%clk 0:00:59.9]} 16. Na4 {[%clk 0:02:22.1]} 16... Bd7 {[%clk
0:00:52.5]} 17. e4 {[%clk 0:02:17.9]} 17... b3 {[%clk 0:00:34.3]} 18. Qb1 {[%clk
0:02:03.3]} 18... c5 {[%clk 0:00:25.4]} 19. e5 {[%clk 0:01:30.9]} 19... Bxa4
{[%clk 0:00:20.4]} 20. exf6 {[%clk 0:01:31.4]} 20... g6 {[%clk 0:00:20.3]} 21.
Bxg6 {[%clk 0:01:17.1]} 21... Rxe2 {[%clk 0:00:18.6]} 22. Bh7+ {[%clk
0:01:12.8]} 22... Kh8 {[%clk 0:00:18.3]} 23. Qf5 {[%clk 0:00:49.5]} 23... Qd7
{[%clk 0:00:10.4]} 24. Qd3 {[%clk 0:00:41.6]} 24... Rae8 {[%clk 0:00:08.7]} 25.
Bf5 {[%clk 0:00:39.1]} 25... Qb7 {[%clk 0:00:07.2]} 26. f4 {[%clk 0:00:35.4]}
26... c4 {[%clk 0:00:05.7]} 27. Qf3 {[%clk 0:00:35.3]} 27... Rxf2 {[%clk
0:00:03.9]} 28. Rxf2 {[%clk 0:00:36.2]} 28... Bf8 {[%clk 0:00:03]} 29. Qh5
{[%clk 0:00:31.4]} 29... Bc6 {[%clk 0:00:02.6]} 30. Raf1 {[%clk 0:00:30]} 30...
c3 {[%clk 0:00:02.9]} 31. bxc3 {[%clk 0:00:30.1]} 31... b2 {[%clk 0:00:03.6]}
32. Bb1 {[%clk 0:00:29.2]} 32... Nc7 {[%clk 0:00:04.3]} 33. Qf5 {[%clk
0:00:28.6]} 33... Nb5 {[%clk 0:00:04.8]} 34. Qh7# {[%clk 0:00:26.8]} 1-0

[Event "*** SCC Grand Prix: Titled Tuesday Blitz"]
[Site "Chess.com"]
[Date "2020.08.11"]
[Round "7"]
[White "ChessAurochs"]
[Black "Aleksey_Sorokin"]
[Result "1-0"]
[WhiteElo "2594"]
[BlackElo "2792"]
[TimeControl "180+1"]
[EndTime "11:17:26 PDT"]
[Termination "ChessAurochs won by resignation"]

1. e4 {[%clk 0:03:00.9]} 1... e5 {[%clk 0:02:59.6]} 2. Nf3 {[%clk 0:03:00.9]}
2... Nc6 {[%clk 0:03:00.5]} 3. Bb5 {[%clk 0:03:01.2]} 3... a6 {[%clk 0:03:00.3]}
4. Ba4 {[%clk 0:03:01.6]} 4... Nf6 {[%clk 0:03:00.4]} 5. O-O {[%clk 0:03:01.8]}
5... Bc5 {[%clk 0:03:00.5]} 6. c3 {[%clk 0:03:01.4]} 6... b5 {[%clk 0:03:00.6]}
7. Bb3 {[%clk 0:03:01.3]} 7... d6 {[%clk 0:03:00.3]} 8. d4 {[%clk 0:03:01.4]}
8... Bb6 {[%clk 0:02:59.4]} 9. Be3 {[%clk 0:03:02]} 9... O-O {[%clk 0:02:57.4]}
10. Nbd2 {[%clk 0:03:01.7]} 10... Rb8 {[%clk 0:02:53.2]} 11. h3 {[%clk
0:02:53.8]} 11... h6 {[%clk 0:02:47.9]} 12. Bc2 {[%clk 0:02:49.8]} 12... Re8
{[%clk 0:02:45.4]} 13. Re1 {[%clk 0:02:20.4]} 13... exd4 {[%clk 0:02:41.7]} 14.
cxd4 {[%clk 0:02:21.3]} 14... Nb4 {[%clk 0:02:35.9]} 15. Bb1 {[%clk 0:02:20.3]}
15... c5 {[%clk 0:02:29]} 16. d5 {[%clk 0:02:16.7]} 16... c4 {[%clk 0:02:26.4]}
17. a3 {[%clk 0:02:13.1]} 17... Nd3 {[%clk 0:02:18]} 18. Bxd3 {[%clk 0:02:13.3]}
18... cxd3 {[%clk 0:02:18.9]} 19. Bxb6 {[%clk 0:02:02.7]} 19... Qxb6 {[%clk
0:02:16]} 20. Qb3 {[%clk 0:02:02.7]} 20... Bb7 {[%clk 0:01:51]} 21. Qxd3 {[%clk
0:02:02.1]} 21... Rbc8 {[%clk 0:01:50.4]} 22. Rac1 {[%clk 0:01:53.3]} 22... Rc7
{[%clk 0:01:47.8]} 23. Rxc7 {[%clk 0:01:37.3]} 23... Qxc7 {[%clk 0:01:47.1]} 24.
Qd4 {[%clk 0:01:28.6]} 24... Qc2 {[%clk 0:01:40.5]} 25. Qb4 {[%clk 0:01:11.6]}
25... Qd3 {[%clk 0:01:15.3]} 26. Qxd6 {[%clk 0:00:58.8]} 26... a5 {[%clk
0:00:46.7]} 27. Qc7 {[%clk 0:00:54.5]} 27... Nxd5 {[%clk 0:00:22.4]} 28. Qxb7
{[%clk 0:00:42.5]} 28... Nf4 {[%clk 0:00:22.3]} 29. Qc7 {[%clk 0:00:33]} 29...
g5 {[%clk 0:00:20]} 30. Kh2 {[%clk 0:00:29.7]} 30... a4 {[%clk 0:00:18.8]} 31.
Qc3 {[%clk 0:00:29.1]} 31... Qd6 {[%clk 0:00:18]} 32. e5 {[%clk 0:00:28.7]}
32... Qd5 {[%clk 0:00:18.3]} 33. Ne4 {[%clk 0:00:27.8]} 33... Kg7 {[%clk
0:00:18.4]} 34. Nf6 {[%clk 0:00:27.6]} 34... Qe6 {[%clk 0:00:18.7]} 35. Nxe8+
{[%clk 0:00:27.7]} 35... Qxe8 {[%clk 0:00:19.6]} 36. e6+ {[%clk 0:00:28.1]}
36... f6 {[%clk 0:00:20]} 37. Qc7+ {[%clk 0:00:27.7]} 37... Kg6 {[%clk
0:00:19.7]} 38. Qd7 {[%clk 0:00:27.4]} 38... Qb8 {[%clk 0:00:19.4]} 39. Kh1
{[%clk 0:00:26.8]} 39... Nd3 {[%clk 0:00:18.2]} 40. Qxd3+ {[%clk 0:00:21.2]} 1-0

[Event "*** SCC Grand Prix: Titled Tuesday Blitz"]
[Site "Chess.com"]
[Date "2020.08.11"]
[Round "7"]
[White "Jumbo"]
[Black "m_ezat"]
[Result "1-0"]
[WhiteElo "2867"]
[BlackElo "2602"]
[TimeControl "180+1"]
[EndTime "11:17:27 PDT"]
[Termination "Jumbo won by checkmate"]

1. Nf3 {[%clk 0:03:00.9]} 1... Nf6 {[%clk 0:02:58.9]} 2. g3 {[%clk 0:03:01.8]}
2... g6 {[%clk 0:02:59.3]} 3. Bg2 {[%clk 0:03:02.7]} 3... Bg7 {[%clk 0:02:59.9]}
4. c4 {[%clk 0:03:03.3]} 4... O-O {[%clk 0:03:00.3]} 5. d4 {[%clk 0:03:03.7]}
5... d6 {[%clk 0:03:00.9]} 6. Nc3 {[%clk 0:03:03.6]} 6... Nc6 {[%clk 0:03:01.5]}
7. O-O {[%clk 0:03:01.9]} 7... Bg4 {[%clk 0:03:02]} 8. d5 {[%clk 0:03:00.8]}
8... Na5 {[%clk 0:03:01.1]} 9. Nd2 {[%clk 0:02:56.6]} 9... c5 {[%clk 0:03:01.3]}
10. Rb1 {[%clk 0:02:54]} 10... a6 {[%clk 0:02:59.7]} 11. a3 {[%clk 0:02:52.5]}
11... Bd7 {[%clk 0:02:21.9]} 12. Qc2 {[%clk 0:02:28.8]} 12... b5 {[%clk
0:02:21]} 13. cxb5 {[%clk 0:02:28.1]} 13... axb5 {[%clk 0:02:20.7]} 14. b4
{[%clk 0:02:28.4]} 14... cxb4 {[%clk 0:02:21]} 15. axb4 {[%clk 0:02:29.3]} 15...
Nc4 {[%clk 0:02:19.6]} 16. Nxc4 {[%clk 0:02:28.7]} 16... bxc4 {[%clk 0:02:20.1]}
17. h3 {[%clk 0:02:27.8]} 17... Qc8 {[%clk 0:02:11.4]} 18. Kh2 {[%clk
0:02:19.4]} 18... h5 {[%clk 0:02:10.2]} 19. Bg5 {[%clk 0:02:16.8]} 19... Re8
{[%clk 0:02:05.6]} 20. Qd2 {[%clk 0:02:14.8]} 20... Ra3 {[%clk 0:01:59.9]} 21.
Rfc1 {[%clk 0:02:13.5]} 21... Bf5 {[%clk 0:01:38]} 22. Ra1 {[%clk 0:01:47.1]}
22... Rxa1 {[%clk 0:01:33.8]} 23. Rxa1 {[%clk 0:01:46.4]} 23... Ne4 {[%clk
0:01:27.6]} 24. Bxe4 {[%clk 0:01:44.8]} 24... Bxe4 {[%clk 0:01:27.8]} 25. Rc1
{[%clk 0:01:45.2]} 25... Bxc3 {[%clk 0:01:10.6]} 26. Rxc3 {[%clk 0:01:43.7]}
26... Qf5 {[%clk 0:01:10.6]} 27. f3 {[%clk 0:01:43.7]} 27... Bb1 {[%clk
0:00:54.4]} 28. Rxc4 {[%clk 0:01:25.3]} 28... Ba2 {[%clk 0:00:52.1]} 29. Rd4
{[%clk 0:01:19.8]} 29... Rc8 {[%clk 0:00:41]} 30. Re4 {[%clk 0:01:08.2]} 30...
f6 {[%clk 0:00:18.7]} 31. Bxf6 {[%clk 0:01:00.5]} 31... Bxd5 {[%clk 0:00:12.8]}
32. Rxe7 {[%clk 0:00:59.6]} 32... Rc2 {[%clk 0:00:09.8]} 33. Qh6 {[%clk
0:00:32.2]} 33... Qxf6 {[%clk 0:00:09.9]} 34. Re8+ {[%clk 0:00:32.2]} 34... Kf7
{[%clk 0:00:09.3]} 35. Qf8# {[%clk 0:00:31]} 1-0

[Event "*** SCC Grand Prix: Titled Tuesday Blitz"]
[Site "Chess.com"]
[Date "2020.08.11"]
[Round "7"]
[White "XDPS"]
[Black "1f3_2g41-0"]
[Result "0-1"]
[WhiteElo "2629"]
[BlackElo "2438"]
[TimeControl "180+1"]
[EndTime "11:17:27 PDT"]
[Termination "1f3_2g41-0 won on time"]

1. e4 {[%clk 0:03:00.9]} 1... c5 {[%clk 0:02:58.9]} 2. Nf3 {[%clk 0:03:00.7]}
2... d6 {[%clk 0:02:59]} 3. d4 {[%clk 0:03:01]} 3... cxd4 {[%clk 0:02:59.9]} 4.
Nxd4 {[%clk 0:03:01.7]} 4... Nf6 {[%clk 0:03:00.6]} 5. Nc3 {[%clk 0:03:02.3]}
5... a6 {[%clk 0:03:01]} 6. Be2 {[%clk 0:03:02.8]} 6... e5 {[%clk 0:03:00]} 7.
Nf3 {[%clk 0:03:03.2]} 7... Be7 {[%clk 0:02:59.7]} 8. O-O {[%clk 0:03:03.7]}
8... O-O {[%clk 0:03:00.2]} 9. Bg5 {[%clk 0:02:59.7]} 9... Be6 {[%clk
0:02:58.5]} 10. Bxf6 {[%clk 0:03:00]} 10... Bxf6 {[%clk 0:02:58.7]} 11. Nd5
{[%clk 0:03:00.7]} 11... Nc6 {[%clk 0:02:51.4]} 12. Bc4 {[%clk 0:02:59.4]} 12...
b5 {[%clk 0:02:49.9]} 13. Bb3 {[%clk 0:02:58.4]} 13... Be7 {[%clk 0:02:37.4]}
14. Qd3 {[%clk 0:02:55.2]} 14... Rc8 {[%clk 0:02:34.5]} 15. Rfd1 {[%clk
0:02:51.4]} 15... Bxd5 {[%clk 0:02:34.6]} 16. Bxd5 {[%clk 0:02:47.2]} 16... Nb4
{[%clk 0:02:33.8]} 17. Qb3 {[%clk 0:02:44.1]} 17... Nxc2 {[%clk 0:02:19.7]} 18.
Rac1 {[%clk 0:02:41.9]} 18... Nd4 {[%clk 0:02:19.1]} 19. Nxd4 {[%clk 0:02:42]}
19... Rxc1 {[%clk 0:02:15.5]} 20. Rxc1 {[%clk 0:02:42.9]} 20... exd4 {[%clk
0:02:15.6]} 21. Rc6 {[%clk 0:02:43.5]} 21... Qa5 {[%clk 0:02:12]} 22. g3 {[%clk
0:02:39.6]} 22... Qe1+ {[%clk 0:02:10.4]} 23. Kg2 {[%clk 0:02:39.5]} 23... Qe2
{[%clk 0:02:08.1]} 24. Rc2 {[%clk 0:02:30]} 24... Qd1 {[%clk 0:02:06.8]} 25.
Bxf7+ {[%clk 0:01:14.7]} 25... Kh8 {[%clk 0:02:06.7]} 26. Rc7 {[%clk 0:00:52.1]}
26... Qxb3 {[%clk 0:01:50.6]} 27. Bxb3 {[%clk 0:00:53]} 27... Bf6 {[%clk
0:01:48.6]} 28. Rc6 {[%clk 0:00:47]} 28... Rd8 {[%clk 0:01:48.1]} 29. Rxa6
{[%clk 0:00:46.1]} 29... d3 {[%clk 0:01:48.3]} 30. f4 {[%clk 0:00:41.4]} 30...
Bxb2 {[%clk 0:01:47.1]} 31. Kf3 {[%clk 0:00:41.3]} 31... d2 {[%clk 0:01:43.2]}
32. Ke2 {[%clk 0:00:39.7]} 32... Bc3 {[%clk 0:01:42.1]} 33. h4 {[%clk
0:00:35.5]} 33... g6 {[%clk 0:01:35.2]} 34. Bd5 {[%clk 0:00:31.7]} 34... b4
{[%clk 0:01:29.4]} 35. Rc6 {[%clk 0:00:22.4]} 35... Kg7 {[%clk 0:01:22.9]} 36.
Rc7+ {[%clk 0:00:16.1]} 36... Kh8 {[%clk 0:01:23.1]} 37. g4 {[%clk 0:00:12.8]}
37... Rf8 {[%clk 0:01:18.2]} 38. f5 {[%clk 0:00:10.5]} 38... gxf5 {[%clk
0:01:18.4]} 39. gxf5 {[%clk 0:00:10.8]} 39... h5 {[%clk 0:01:13.9]} 40. a3
{[%clk 0:00:05]} 40... Rb8 {[%clk 0:00:43.2]} 41. axb4 {[%clk 0:00:02.7]} 41...
Bxb4 {[%clk 0:00:44.1]} 42. Rc2 {[%clk 0:00:01.4]} 42... Ba5 {[%clk 0:00:44]}
43. Ra2 {[%clk 0:00:01.3]} 43... Rb1 {[%clk 0:00:43.6]} 0-1

[Event "*** SCC Grand Prix: Titled Tuesday Blitz"]
[Site "Chess.com"]
[Date "2020.08.11"]
[Round "7"]
[White "keepitcool9499"]
[Black "M1711"]
[Result "1-0"]
[WhiteElo "2656"]
[BlackElo "2463"]
[TimeControl "180+1"]
[EndTime "11:17:28 PDT"]
[Termination "keepitcool9499 won on time"]

1. d4 {[%clk 0:03:00.9]} 1... Nf6 {[%clk 0:02:59.1]} 2. c4 {[%clk 0:03:01.4]}
2... e6 {[%clk 0:02:58.9]} 3. Nc3 {[%clk 0:02:59.6]} 3... Bb4 {[%clk 0:02:59.2]}
4. Bd2 {[%clk 0:02:59.8]} 4... O-O {[%clk 0:02:58]} 5. e3 {[%clk 0:02:58.7]}
5... d5 {[%clk 0:02:50.6]} 6. Nf3 {[%clk 0:02:57.3]} 6... b6 {[%clk 0:02:46.6]}
7. cxd5 {[%clk 0:02:54.6]} 7... exd5 {[%clk 0:02:47.5]} 8. Bd3 {[%clk
0:02:52.8]} 8... Bb7 {[%clk 0:02:39.9]} 9. Rc1 {[%clk 0:02:49.8]} 9... Re8
{[%clk 0:02:35.8]} 10. O-O {[%clk 0:02:48.9]} 10... Nbd7 {[%clk 0:02:32.6]} 11.
Nb5 {[%clk 0:02:44.2]} 11... Bxd2 {[%clk 0:02:23.3]} 12. Nxd2 {[%clk 0:02:40.2]}
12... Ba6 {[%clk 0:01:38.1]} 13. Nb3 {[%clk 0:02:18.7]} 13... Rc8 {[%clk
0:01:17.7]} 14. Nxa7 {[%clk 0:02:14.8]} 14... Ra8 {[%clk 0:01:16.5]} 15. Nc6
{[%clk 0:02:10.1]} 15... Qc8 {[%clk 0:01:15.6]} 16. a3 {[%clk 0:02:03.1]} 16...
Ne4 {[%clk 0:01:11.5]} 17. Bxa6 {[%clk 0:01:55.9]} 17... Qxa6 {[%clk 0:01:09.8]}
18. Nb4 {[%clk 0:01:53.4]} 18... Qb7 {[%clk 0:01:10.1]} 19. Nd2 {[%clk
0:01:46.5]} 19... c5 {[%clk 0:01:01.3]} 20. dxc5 {[%clk 0:01:43.2]} 20... bxc5
{[%clk 0:00:59.3]} 21. Nxe4 {[%clk 0:01:34.3]} 21... dxe4 {[%clk 0:00:52.3]} 22.
Qd5 {[%clk 0:01:33.3]} 22... Rab8 {[%clk 0:00:21.5]} 23. Rfd1 {[%clk 0:01:20.9]}
23... cxb4 {[%clk 0:00:12.8]} 24. Qxd7 {[%clk 0:01:18.1]} 24... bxa3 {[%clk
0:00:09.3]} 25. bxa3 {[%clk 0:01:14.8]} 25... Qxd7 {[%clk 0:00:06.9]} 26. Rxd7
{[%clk 0:01:15.7]} 26... Rb3 {[%clk 0:00:04.4]} 27. Ra7 {[%clk 0:01:12.4]} 27...
h5 {[%clk 0:00:02.5]} 28. h4 {[%clk 0:01:10]} 28... Re6 {[%clk 0:00:02.1]} 29.
Rc8+ {[%clk 0:01:07]} 29... Kh7 {[%clk 0:00:02.5]} 30. Rxf7 {[%clk 0:01:03.4]}
30... Rxa3 {[%clk 0:00:03]} 31. Rcc7 {[%clk 0:01:01.2]} 31... Rg6 {[%clk
0:00:03.3]} 32. Rf5 {[%clk 0:00:58.9]} 32... Ra1+ {[%clk 0:00:03.2]} 33. Kh2
{[%clk 0:00:57]} 33... Rh6 {[%clk 0:00:03.2]} 34. Rg5 {[%clk 0:00:55.2]} 34...
Rg6 {[%clk 0:00:01.5]} 35. Rxh5+ {[%clk 0:00:53.7]} 35... Kg8 {[%clk 0:00:02.2]}
36. Rc8+ {[%clk 0:00:52.8]} 36... Kf7 {[%clk 0:00:02.3]} 37. Rf5+ {[%clk
0:00:53.1]} 37... Ke6 {[%clk 0:00:02.2]} 38. Rf4 {[%clk 0:00:52.8]} 38... Ra4
{[%clk 0:00:01.8]} 39. Re8+ {[%clk 0:00:51.6]} 39... Kd5 {[%clk 0:00:02.3]} 40.
Rf5+ {[%clk 0:00:51.6]} 40... Kd6 {[%clk 0:00:02.3]} 41. Rf4 {[%clk 0:00:49.5]}
41... Kd5 {[%clk 0:00:02.5]} 42. Rd8+ {[%clk 0:00:49.8]} 42... Ke5 {[%clk
0:00:02.3]} 43. g3 {[%clk 0:00:49.8]} 43... Rb4 {[%clk 0:00:01.6]} 44. Kg2
{[%clk 0:00:49.8]} 44... Ra6 {[%clk 0:00:01.4]} 45. Rg4 {[%clk 0:00:48.3]} 1-0